fUSD/lending_fUSD_20260207
["ID","MTS","AMOUNT","RATE_DAILY","PERIOD"]
[404690219,1770465038317,-9999.99,0.00016922,2]
[404690220,1770465038328,-26702.96,0.00016922,2]
[404690221,1770465038339,-1554.0,0.00016922,2]
[404690222,1770465038351,-14612.94,0.00016922,2]
[404690223,1770465038362,-1610.39,0.00016922,2]
[404690224,1770465038373,-5326.57,0.00016922,2]
[404690225,1770465038385,-4999.99,0.00016922,2]
[404690226,1770465038395,-299.99,0.00016922,4]
[404690227,1770465038406,-22352.3,0.00016922,2]
[404690228,1770465038417,-499.99,0.00016922,2]
[404690229,1770465038428,-166.66,0.00016928,2]
[404690230,1770465038439,-1062.10949832,0.00016937,2]
[404690231,1770465038449,-166.66,0.00016955,2]
[404690232,1770465038460,-300.0,0.00017,2]
[404690233,1770465038471,-3000.0,0.00017,2]
[404690234,1770465038481,-1000.0,0.00017074,2]
[404690235,1770465038491,-187.78006525,0.00017074,2]
[404690236,1770465038502,-150.0,0.00017148,2]
[404690237,1770465038512,-213.0,0.00017148,2]
[404690238,1770465038524,-412.0,0.00017148,2]
[404690239,1770465038533,-150.197,0.00017148,2]
[404690240,1770465038543,-150.233,0.00017148,2]
[404690241,1770465038553,-2447.0,0.00017148,2]
[404690242,1770465038563,-4640.92014957,0.0001715,2]
[404690243,1770465038573,-11630.30648804,0.00017151,2]
[404690244,1770465038583,-200.0,0.00017246,2]
[404690245,1770465038593,-166.66,0.00017297,2]
[404690246,1770465038604,-243.15006395,0.00017321,2]
[404690247,1770465038613,-334.5472959,0.00017347,2]
[404690248,1770465038623,-163.0,0.0001736,2]
[404690249,1770465038634,-2818.68,0.00017386,2]
[404690250,1770465038643,-1500.0,0.000174,2]
[404690251,1770465038654,-1062.10949832,0.00017418,2]
[404690252,1770465038664,-166.66,0.00017486,2]
[404690253,1770465038674,-1500.0,0.000175,2]
[404690254,1770465038684,-200.0,0.00017516,2]
[404690255,1770465038695,-4640.92014957,0.00017525,2]
[404690256,1770465038705,-11630.30648804,0.00017525,2]
[404690257,1770465038715,-200.0,0.00017615,2]
[404690258,1770465038726,-194.72792766,0.00017622,2]
[404690259,1770465038736,-166.66,0.0001764,2]
[404690260,1770465038747,-1188.18820231,0.0001764,2]
[404690261,1770465038758,-163.0,0.0001768,2]
[404690262,1770465038769,-783.19290883,0.000177,2]
[404690263,1770465038780,-1500.0,0.000177,2]
[404690264,1770465038791,-484.42085053,0.0001777,2]
[404690265,1770465038801,-1500.0,0.000178,2]
[404690266,1770465038811,-203.91426758,0.00017808,2]
[404690267,1770465038820,-250.0,0.00017808,10]
[404690268,1770465038829,-250.0,0.00017808,10]
[404690269,1770465038840,-250.0,0.00017808,10]
[404690270,1770465038850,-250.0,0.00017808,10]
[404690271,1770465038860,-250.0,0.00017808,10]
[404690272,1770465038873,-250.0,0.00017808,10]
[404690273,1770465038884,-250.0,0.00017808,10]
[404690274,1770465038895,-250.000003,0.00017808,10]
[404690275,1770465038907,-500.0,0.000179,2]
[404690276,1770465038917,-9263.89162409,0.000179,3]
[404690277,1770465038928,-4640.92014957,0.000179,2]
[404690278,1770465038939,-1685.0,0.000179,2]
[404690279,1770465038950,-1062.10949832,0.000179,2]
[404690280,1770465038960,-11630.30648804,0.000179,2]
[404690281,1770465038971,-766.67594941,0.000179,2]
[404690282,1770465038985,-242.726152,0.000179,2]
[404690283,1770465038997,-4022.24202871,0.000179,2]
[404690284,1770465039007,-16453.186493,0.000179,2]
[404690285,1770465039019,-707.02472124,0.000179,3]
[404690286,1770465039029,-500.0,0.000179,2]
[404690287,1770465039041,-500.0,0.000179,2]
[404690288,1770465039051,-500.0,0.000179,2]
[404690289,1770465039063,-500.0,0.000179,2]
[404690290,1770465039075,-500.0,0.000179,2]
[404690291,1770465039085,-500.0,0.000179,2]
[404690292,1770465039095,-500.0,0.000179,2]
[404690293,1770465039106,-444.30041557,0.000179,2]
[404690294,1770465039364,-538.8,0.0001791,2]
[404690295,1770465039391,-200.0,0.00017928,2]
[404690296,1770465039404,-150.0,0.00017973,2]
[404690297,1770465039414,-150.0,0.00017973,2]
[404690298,1770465039424,-166.66,0.00017983,2]
[404690299,1770465039433,-151.0,0.00017987,2]
[404690300,1770465039444,-110735.62342803,0.0001799,3]
[404690301,1770465039454,-1048.5871144,0.00017997,2]
[404690302,1770465039463,-154.7823952,0.00017997,2]
[404690303,1770465039475,-151.0,0.00017997,2]
[404690304,1770465039486,-165321.3168121,0.00018,2]
[404690305,1770465039503,-308.5174995,0.00018,2]
[404690306,1770465039515,-446.49837639,0.00018,2]
[404690307,1770465039527,-35080.45007758,0.00018,2]
[404690309,1770465039692,-1231.95154551,0.00017148,2]
[404690310,1770465039798,-585.16885174,0.00017148,2]
[404690311,1770465039810,-765.93076401,0.00017148,2]
[404690312,1770465039823,-4000.94883874,0.00017148,2]
[404690313,1770465039834,-1688934.5997606,0.00018,2]
[404690314,1770465039851,-492.6888232,0.00018,2]
[404690315,1770465039863,-732.18335078,0.00018,2]
[404690316,1770465039876,-51095.22268155,0.00018,2]
[404690317,1770465039906,-801.54783843,0.00018,2]
[404690318,1770465039918,-900.0,0.00018,2]
[404690319,1770465040069,-211468.04937231,0.00018,2]
[404690329,1770465043304,-129.67881028,0.00017987,2]
[404690330,1770465043334,-21.32118972,0.00017987,2]
[404690331,1770465043344,-151.0,0.00017997,2]
[404690332,1770465043355,-383.54882528,0.00018,2]
[404690333,1770465045537,-474.61380548,0.000179,2]
[404690334,1770465045549,-2171.31302413,0.00018,2]
[404690337,1770465045693,-1148.2800006,0.00018,2]
[404690338,1770465045800,-706.0186124,0.00018,2]
[404690339,1770465045812,-474.209881,0.00018,2]
[404690340,1770465110829,1019.31,0.00026116,120]
[404690341,1770465111081,1019.31,0.00028491,120]
[404690347,1770465728312,552.593064,7.945e-05,2]
[404690354,1770465768416,397.38370813,0.00035616,120]
[404690355,1770465770178,262.11728743,0.00035616,120]
[404690356,1770465770505,241.81611435,0.00035616,120]
[404690357,1770465772746,500.0,0.00035616,120]
[404690358,1770465772996,500.0,0.00035616,120]
[404690359,1770465773275,500.0,0.00035616,120]
[404690360,1770465773517,500.0,0.00035616,120]
[404690361,1770465773753,500.0,0.00035616,120]
[404690362,1770465774104,500.0,0.00035616,120]
[404690363,1770465774367,500.0,0.00035616,120]
[404690364,1770465774600,500.0,0.00035616,120]
[404690365,1770465775026,500.0,0.00035616,120]
[404690366,1770465775393,500.0,0.00035616,120]
[404690367,1770465775638,500.0,0.00035616,120]
[404690369,1770465775862,500.0,0.00035616,120]
[404690370,1770465776102,500.0,0.00035616,120]
[404690371,1770465776349,500.0,0.00035616,120]
[404690372,1770465776592,207.27481143,0.00035616,120]
[404690373,1770465776910,323.14036889,0.00035616,120]
[404690374,1770465777427,161.63846969,0.00035616,120]
[404690375,1770465779290,625.98935977,0.00035616,120]
[404690376,1770465780356,500.0,0.00035616,120]
[404690377,1770465780582,500.0,0.00035616,120]
[404690378,1770465780840,500.0,0.00035616,120]
[404690379,1770465781079,500.0,0.00035616,120]
[404690380,1770465781122,226.93947928,0.00035616,120]
[404690381,1770465781321,500.0,0.00035616,120]
[404690382,1770465781539,303.89500058,0.00035616,120]
[404690383,1770465781570,500.0,0.00035616,120]
[404690384,1770465781794,500.0,0.00035616,120]
[404690385,1770465782058,500.0,0.00035616,120]
[404690386,1770465782301,500.0,0.00035616,120]
[404690387,1770465782568,500.0,0.00035616,120]
[404690388,1770465782805,500.0,0.00035616,120]
[404690389,1770465783042,500.0,0.00035616,120]
[404690390,1770465783288,500.0,0.00035616,120]
[404690391,1770465783523,500.0,0.00035616,120]
[404690392,1770465783762,500.0,0.00035616,120]
[404690393,1770465783992,500.0,0.00035616,120]
[404690394,1770465784222,500.0,0.00035616,120]
[404690395,1770465784455,500.0,0.00035616,120]
[404690396,1770465784799,500.0,0.00035616,120]
[404690397,1770465784831,500.0,0.00035616,120]
[404690398,1770465785037,500.0,0.00035616,120]
[404690399,1770465785069,500.0,0.00035616,120]
[404690400,1770465785283,500.0,0.00035616,120]
[404690401,1770465785315,500.0,0.00035616,120]
[404690402,1770465785527,500.0,0.00035616,120]
[404690403,1770465785562,500.0,0.00035616,120]
[404690404,1770465785755,155.77144252,0.00035616,120]
[404690405,1770465785786,500.0,0.00035616,120]
[404690406,1770465786013,377.38962632,0.00035616,120]
[404690407,1770465786602,235.39279797,0.00035616,120]
[404690408,1770465787800,573.61087622,0.00035616,120]
[404690409,1770465789681,151.66870491,0.00035616,120]
[404690410,1770465791680,234.27849771,0.00035616,120]
[404690411,1770465801395,339.96639474,0.00035616,120]
[404690412,1770465802035,184.60203342,0.00035616,120]
[404690413,1770465804317,376.70132749,0.00035616,120]
[404690414,1770465807785,296.15233851,0.00035616,120]
[404690415,1770465815126,173.48270874,0.00035616,120]
[404690416,1770465819056,500.0,0.00035616,120]
[404690417,1770465819278,500.0,0.00035616,120]
[404690418,1770465819509,500.0,0.00035616,120]
[404690419,1770465819781,500.0,0.00035616,120]
[404690420,1770465820022,500.0,0.00035616,120]
[404690421,1770465820269,500.0,0.00035616,120]
[404690422,1770465820508,500.0,0.00035616,120]
[404690423,1770465820750,500.0,0.00035616,120]
[404690424,1770465820977,500.0,0.00035616,120]
[404690425,1770465821207,500.0,0.00035616,120]
[404690426,1770465821481,500.0,0.00035616,120]
[404690427,1770465821732,586.56812561,0.00035616,120]
[404690428,1770465822004,300.75322452,0.00035616,120]
[404690429,1770465824207,233.87562435,0.00035616,120]
[404690430,1770465828088,500.0,0.00035616,120]
[404690431,1770465828123,500.0,0.00035616,120]
[404690432,1770465828248,500.0,0.00035616,120]
[404690433,1770465828335,500.0,0.00035616,120]
[404690434,1770465828583,500.0,0.00035616,120]
[404690435,1770465828720,612.9534,0.00035616,120]
[404690436,1770465828859,500.0,0.00035616,120]
[404690437,1770465829114,500.0,0.00035616,120]
[404690438,1770465831584,184.09333072,0.00035616,120]
[404690439,1770465834733,153.29691722,0.00035616,120]
[404690440,1770465836283,153.50295405,0.00035616,120]
[404690441,1770465838460,2263.66,0.00035616,120]
[404690442,1770465838494,2263.66,0.00035616,120]
[404690443,1770465838625,2263.66,0.00035616,120]
[404690444,1770465838876,2263.66,0.00035616,120]
[404690445,1770465839122,2263.66,0.00035616,120]
[404690446,1770465839361,2263.66,0.00035616,120]
[404690447,1770465839618,2263.66,0.00035616,120]
[404690448,1770465839852,2263.66,0.00035616,120]
[404690449,1770465839963,571.02677364,0.00035616,120]
[404690450,1770465840090,2263.66,0.00035616,120]
[404690451,1770465840340,2263.66,0.00035616,120]
[404690452,1770465840593,2263.66,0.00035616,120]
[404690453,1770465840828,2263.66,0.00035616,120]
[404690454,1770465841078,2263.66,0.00035616,120]
[404690455,1770465841313,2263.66,0.00035616,120]
[404690456,1770465841583,2263.66,0.00035616,120]
[404690457,1770465841833,2263.66,0.00035616,120]
[404690458,1770465842080,2263.66,0.00035616,120]
[404690459,1770465842335,2263.66,0.00035616,120]
[404690460,1770465842574,2263.66,0.00035616,120]
[404690461,1770465842809,2263.66,0.00035616,120]
[404690462,1770465843074,2263.66,0.00035616,120]
[404690463,1770465843326,2263.66,0.00035616,120]
[404690464,1770465843557,2263.66,0.00035616,120]
[404690465,1770465843888,2263.79113311,0.00035616,120]
[404690466,1770465844353,500.0,0.00035616,120]
[404690467,1770465844615,500.0,0.00035616,120]
[404690468,1770465844848,500.0,0.00035616,120]
[404690469,1770465845090,500.0,0.00035616,120]
[404690470,1770465845327,500.0,0.00035616,120]
[404690471,1770465845564,500.0,0.00035616,120]
[404690472,1770465845802,500.0,0.00035616,120]
[404690473,1770465846039,500.0,0.00035616,120]
[404690474,1770465846278,500.0,0.00035616,120]
[404690475,1770465846425,500.0,0.00035616,120]
[404690476,1770465846514,605.97215447,0.00035616,120]
[404690477,1770465846760,225.0200603,0.00035616,120]
[404690478,1770465846793,500.0,0.00035616,120]
[404690479,1770465847039,500.0,0.00035616,120]
[404690480,1770465847322,500.0,0.00035616,120]
[404690481,1770465847506,500.0,0.00035616,120]
[404690482,1770465847547,500.0,0.00035616,120]
[404690483,1770465847787,500.0,0.00035616,120]
[404690484,1770465848021,500.0,0.00035616,120]
[404690485,1770465848080,312.18829692,0.00035616,120]
[404690486,1770465848263,500.0,0.00035616,120]
[404690487,1770465848646,500.0,0.00035616,120]
[404690488,1770465848736,500.0,0.00035616,120]
[404690489,1770465848970,500.0,0.00035616,120]
[404690490,1770465849214,442.21657488,0.00035616,120]
[404690491,1770465852739,500.0,0.00035616,120]
[404690492,1770465852985,500.0,0.00035616,120]
[404690493,1770465853223,500.0,0.00035616,120]
[404690494,1770465853481,500.0,0.00035616,120]
[404690495,1770465853707,500.0,0.00035616,120]
[404690496,1770465853931,500.0,0.00035616,120]
[404690497,1770465854162,520.60804257,0.00035616,120]
[404690498,1770465858282,535.86527573,0.00035616,120]
[404690499,1770465861943,500.0,0.00035616,120]
[404690500,1770465862189,500.0,0.00035616,120]
[404690501,1770465862533,500.0,0.00035616,120]
[404690502,1770465862766,500.0,0.00035616,120]
[404690503,1770465862993,500.0,0.00035616,120]
[404690504,1770465863228,500.0,0.00035616,120]
[404690505,1770465863465,500.0,0.00035616,120]
[404690506,1770465863688,500.0,0.00035616,120]
[404690507,1770465863878,192.1559282,0.00035616,120]
[404690508,1770465863915,500.0,0.00035616,120]
[404690509,1770465864150,500.0,0.00035616,120]
[404690510,1770465864381,500.0,0.00035616,120]
[404690511,1770465864618,500.0,0.00035616,120]
[404690512,1770465864848,500.0,0.00035616,120]
[404690513,1770465865084,500.0,0.00035616,120]
[404690514,1770465865118,2198.36751865,0.00035616,120]
[404690515,1770466037010,453.0,0.00017,30]
[404690516,1770466037291,500.0,0.00017,30]
[404690517,1770466043144,302.48757083,0.00017,30]
[404690518,1770466046391,532.09544388,0.00017,30]
[404690519,1770466156118,-187.55,0.0001384,2]
[404690520,1770466156138,-264.0,0.0001384,2]
[404690521,1770466156159,-2945.68675482,0.00014266,2]
[404690522,1770466156180,-1301.68,0.00014278,2]
[404690523,1770466156201,-152.0,0.0001566,3]
[404690524,1770466156221,-166.66,0.00015872,2]
[404690527,1770466231571,-166.66,0.00016206,2]
[404690528,1770466231581,-286.0,0.00016206,2]
[404690529,1770466231591,-1000.0,0.00016383,2]
[404690530,1770466231600,-840.0,0.000164,2]
[404690531,1770466231609,-166.66,0.0001654,2]
[404690532,1770466231619,-200.0,0.00016582,2]
[404690533,1770466231628,-578.20924308,0.00016635,2]
[404690534,1770466231639,-243.15006395,0.00016773,2]
[404690535,1770466231648,-38106.35818454,0.00016821,2]
[404690536,1770466231660,-81909.72642799,0.00016821,2]
[404690537,1770466231686,-1932.76394425,0.00016821,2]
[404690538,1770466231702,-1403.84725605,0.00016821,2]
[404690539,1770466231786,-353.5,0.00016821,2]
[404690563,1770466237779,-950.98,0.00016821,2]
[404690564,1770466237790,-1394564.02724866,0.00016821,2]
[404690565,1770466237802,-68099.99999999,0.00016821,2]
[404690566,1770466237885,-4580.48320981,0.00016821,2]
[404690603,1770466239947,-418.28733305,0.00016821,2]
[404690604,1770466239958,-5452.12709356,0.00016821,2]
[404690605,1770466239969,-303.95998268,0.00016821,2]
[404690606,1770466240107,-1688934.5997606,0.00016821,2]
[404690607,1770466240118,-617.4,0.00016821,2]
[404690689,1770466244840,-151.0,0.00016818,2]
[404690690,1770466244849,-1516.8808215,0.00016821,2]
[404690691,1770466244863,-1932.55109232,0.00016821,2]
[404690692,1770466244876,-289.56523372,0.00016821,2]
[404690693,1770466244889,-429.41959828,0.00016821,2]
[404690694,1770466244903,-7954.23235509,0.00016821,2]
[404690696,1770466245790,-2746.71479956,0.00016821,2]
[404690697,1770466245803,-1536.5961686,0.00016821,2]
[404690759,1770466280337,253.74446118,0.00015173,2]
[404690763,1770467132904,7811.226936,8.36e-06,2]
[404690764,1770467132941,1001.0,8.36e-06,2]
[404690765,1770467132981,1001.0,8.36e-06,2]
[404690766,1770467133010,165.09463601,8.36e-06,2]
[404690792,1770467431989,-1191.58,0.0001428,2]
[404690793,1770467431999,-208.42,0.00014425,2]
[404690794,1770467432011,-91.58,0.00014425,2]
[404690795,1770467432020,-195.0,0.0001457,2]
[404690796,1770467432031,-36.90910006,0.0001457,2]
[404690797,1770467432099,-2463.09089994,0.0001457,2]
[404690798,1770467432109,-286.05470006,0.00014662,2]
[404690804,1770467437922,-13.94529994,0.00014662,2]
[404690805,1770467437932,-1200.0,0.00014801,2]
[404690806,1770467437942,-195.0,0.00014802,2]
[404690807,1770467437951,-1160.9242549,0.00014802,2]
[404690808,1770467437961,-422.55,0.00014859,2]
[404690809,1770467437971,-265.0,0.00014918,2]
[404690810,1770467437984,-300.0,0.00014918,2]
[404690811,1770467437994,-300.0,0.00014919,2]
[404690812,1770467438004,-2742.19774885,0.00014973,2]
[404690813,1770467438013,-158.20460184,0.00014973,2]
[404690814,1770467438023,-193.5174708,0.00014973,2]
[404690815,1770467438033,-1164.32712806,0.00014973,2]
[404690816,1770467438043,-13636.19039767,0.00014973,2]
[404690817,1770467438053,-796.58212374,0.00015,2]
[404690818,1770467438063,-235.67490708,0.00015,2]
[404690819,1770467438072,-150.0,0.00015045,2]
[404690820,1770467438083,-150.0,0.00015045,2]
[404690821,1770467438093,-151.0,0.0001507,2]
[404690822,1770467438103,-300.0,0.00015071,2]
[404690823,1770467438113,-500.0,0.00015072,2]
[404690824,1770467438122,-346.93210626,0.00015072,2]
[404690825,1770467438132,-278.44758318,0.00015072,2]
[404690826,1770467438142,-300.79009332,0.00015072,2]
[404690827,1770467438151,-500.0,0.00015072,2]
[404690828,1770467438162,-500.0,0.00015072,2]
[404690829,1770467438172,-500.0,0.00015072,2]
[404690830,1770467438182,-500.0,0.00015072,2]
[404690831,1770467438192,-500.0,0.00015072,2]
[404690832,1770467438202,-500.0,0.00015072,2]
[404690833,1770467438212,-500.0,0.00015072,2]
[404690834,1770467438222,-500.0,0.00015072,2]
[404690835,1770467438231,-500.0,0.00015072,2]
[404690836,1770467438241,-500.0,0.00015072,2]
[404690837,1770467438251,-500.0,0.00015072,2]
[404690838,1770467438260,-500.0,0.00015072,2]
[404690839,1770467438270,-500.0,0.00015072,2]
[404690840,1770467438279,-184.06176964,0.00015072,2]
[404690841,1770467438289,-500.0,0.00015072,2]
[404690842,1770467438299,-500.0,0.00015072,2]
[404690843,1770467438308,-500.0,0.00015072,2]
[404690844,1770467438318,-500.0,0.00015072,2]
[404690845,1770467438328,-500.0,0.00015072,2]
[404690846,1770467438338,-500.0,0.00015072,2]
[404690847,1770467438347,-500.0,0.00015072,2]
[404690848,1770467438357,-500.0,0.00015072,2]
[404690849,1770467438370,-500.0,0.00015072,2]
[404690850,1770467438379,-500.0,0.00015072,2]
[404690851,1770467438388,-500.0,0.00015072,2]
[404690852,1770467438397,-500.0,0.00015072,2]
[404690853,1770467438407,-500.0,0.00015072,2]
[404690854,1770467438421,-500.0,0.00015072,2]
[404690855,1770467438431,-500.0,0.00015072,2]
[404690856,1770467438440,-666.0,0.00015072,2]
[404690857,1770467438450,-1717490.6835251,0.00015073,2]
[404690858,1770467438462,-3843.54628777,0.00015073,2]
[404690863,1770467440087,-151.0,0.0001507,2]
[404690864,1770467440097,-173.63865496,0.00015073,2]
[404690865,1770467440108,-1390.38,0.00015073,2]
[404690866,1770467440120,-5138.74999995,0.00015073,2]
[404690885,1770467443587,-4117.77963714,0.00015073,2]
[404690886,1770467444279,-2870.83467658,0.00015073,2]
[404690895,1770467445850,-2429.25427529,0.00015073,2]
[404690896,1770467445961,-330.17801583,0.00015073,2]
[404690897,1770467446073,-978.54062922,0.00015073,2]
[404690898,1770467446084,-891.93999999,0.00015073,2]
[404690899,1770467446096,-999.4796696,0.00015073,2]
[404690900,1770467446107,-310.25882034,0.00015073,2]
[404690947,1770467782291,153.758224,0.00022,120]
[404690948,1770467798372,153.75822471,0.00022,120]
[404690969,1770468631957,-210.53408278,0.00011133,2]
[404690971,1770468631967,-241.0,0.00011133,2]
[404690974,1770468631980,-195.0,0.00011136,2]
[404690976,1770468631991,-82.5225035,0.00011139,2]
[404690981,1770468632026,-112.4774965,0.00011139,2]
[404690983,1770468632037,-250.0,0.00011145,2]
[404690985,1770468632063,-337.5725035,0.00011188,2]
[404690986,1770468632079,-803.2130065,0.00011188,2]
[404690987,1770468632091,-250.0,0.00011188,2]
[404690988,1770468632102,-674.19139444,0.00011219,2]
[404690989,1770468632116,-1355.09155744,0.00011219,2]
[404690990,1770468632131,-437.436765,0.00011219,2]
[404690991,1770468632183,-478.96703794,0.00011219,2]
[404690992,1770468632194,-1678.81,0.00011233,2]
[404690994,1770468632206,-98.66313971,0.00011285,2]
[404690995,1770468632255,-79.03686029,0.00011285,2]
[404690996,1770468632267,-464.98313971,0.000114,2]
[404690997,1770468632280,-1204.07074912,0.000114,2]
[404690998,1770468632290,-1200.0,0.00012244,2]
[404690999,1770468632300,-137.11454187,0.00012245,2]
[404691001,1770468632314,-1062.88545813,0.00012245,2]
[404691002,1770468632326,-108.26841563,0.00012245,2]
[404691004,1770468638050,-156.73158437,0.00012245,2]
[404691005,1770468638063,-300.0,0.00012245,2]
[404691006,1770468638074,-300.0,0.00012245,2]
[404691007,1770468638086,-79.28813195,0.00012246,2]
[404691008,1770468638104,-170.71186805,0.00012246,2]
[404691009,1770468638114,-195.0,0.00012246,2]
[404691010,1770468638124,-195.0,0.00012246,2]
[404691011,1770468638134,-398.40181197,0.00012246,2]
[404691012,1770468638149,-61.18215805,0.00012246,2]
[404691013,1770468638163,-133.81784195,0.00012246,2]
[404691014,1770468638175,-500.0,0.00012246,2]
[404691015,1770468638188,-166.66,0.00012839,2]
[404691016,1770468638200,-10988.99296226,0.00013,2]
[404691017,1770468638213,-1669.05388883,0.00013,2]
[404691018,1770468638224,-210.53408277,0.00013053,2]
[404691019,1770468638235,-167.84277087,0.000131,2]
[404691020,1770468638246,-166.66,0.0001311,2]
[404691021,1770468638257,-166.66,0.0001338,2]
[404691022,1770468638268,-500.0,0.00013401,2]
[404691023,1770468638278,-277.0,0.00013439,2]
[404691024,1770468638288,-300.0,0.00013439,2]
[404691025,1770468638298,-1680.0,0.00013468,2]
[404691026,1770468638317,-166.66,0.0001365,2]
[404691027,1770468638328,-200.0,0.00013699,2]
[404691028,1770468638339,-107.12485466,0.00013739,2]
[404691029,1770468638359,-128.23514534,0.00013739,2]
[404691030,1770468638370,-362.15,0.00013895,2]
[404691031,1770468638382,-166.66,0.0001392,2]
[404691032,1770468638397,-200.0,0.00014046,2]
[404691033,1770468638409,-274.48,0.0001407,2]
[404691034,1770468638421,-150.0,0.0001407,2]
[404691035,1770468638432,-1394.11,0.00014148,2]
[404691037,1770468638444,-166.66,0.00014191,2]
[404691038,1770468638455,-625.25485466,0.00014219,2]
[404691039,1770468638469,-2193.42514534,0.00014219,2]
[404691040,1770468638480,-500.0,0.00014416,2]
[404691041,1770468638492,-151.0,0.00014416,2]
[404691042,1770468638503,-151.0,0.00014416,2]
[404691043,1770468638514,-151.0,0.00014416,2]
[404691044,1770468638525,-151.0,0.00014416,2]
[404691045,1770468638537,-151.0,0.00014416,2]
[404691046,1770468638548,-500.0,0.00014416,2]
[404691047,1770468638559,-151.0,0.00014416,2]
[404691048,1770468638572,-500.0,0.00014416,2]
[404691049,1770468638583,-151.0,0.00014416,2]
[404691050,1770468638594,-500.0,0.00014416,2]
[404691051,1770468638605,-151.0,0.00014416,2]
[404691052,1770468638615,-500.0,0.00014416,2]
[404691053,1770468638626,-151.0,0.00014416,2]
[404691054,1770468638637,-500.0,0.00014416,2]
[404691055,1770468638649,-275.25443955,0.00014416,2]
[404691056,1770468638660,-500.0,0.00014416,2]
[404691057,1770468638670,-8187.85,0.00014425,2]
[404691058,1770468638681,-500.0,0.00014585,2]
[404691059,1770468638696,-1669.05388883,0.000146,2]
[404691060,1770468638707,-500.0,0.0001464,2]
[404691061,1770468638718,-500.0,0.0001469,2]
[404691062,1770468638729,-150.41052194,0.00014692,2]
[404691063,1770468638740,-150.0,0.00014692,2]
[404691064,1770468638751,-150.0,0.00014692,2]
[404691065,1770468638762,-500.0,0.00014695,2]
[404691066,1770468638773,-156.74412861,0.00014747,2]
[404691067,1770468638784,-150.0,0.00014747,2]
[404691068,1770468638795,-500.0,0.00014749,2]
[404691069,1770468638806,-179.62943936,0.00014802,2]
[404691070,1770468638817,-500.0,0.00014804,2]
[404691071,1770468638827,-2351.0,0.00014815,2]
[404691072,1770468638838,-500.0,0.00014859,2]
[404691073,1770468638849,-237.35,0.00014867,2]
[404691074,1770468638860,-500.0,0.00014867,2]
[404691075,1770468638874,-500.0,0.00014867,2]
[404691076,1770468638885,-193.1584119,0.00014898,2]
[404691077,1770468638897,-500.0,0.00014964,2]
[404691078,1770468638907,-210.53408277,0.00014972,2]
[404691079,1770468638918,-150.0,0.00015,2]
[404691080,1770468638929,-160.0,0.00015009,2]
[404691081,1770468638940,-322.28885817,0.00015072,2]
[404691082,1770468638951,-500.0,0.00015072,2]
[404691083,1770468638962,-178.81113549,0.00015072,2]
[404691084,1770468638973,-500.0,0.00015072,2]
[404691085,1770468638984,-500.0,0.00015072,2]
[404691086,1770468638994,-295.07674716,0.00015072,2]
[404691087,1770468639006,-500.0,0.00015072,2]
[404691088,1770468639020,-500.0,0.00015072,2]
[404691089,1770468639030,-500.0,0.00015072,2]